Cogmind - Beta 14 @@@ ROGUE MODE // 2024.09.04 @ 12:25:57 Player: Minty Result: Destroyed by 4E-V74(R) with Subdweller Machine Gun Performance ------------- Evolutions (0) 0 Regions Visited (2) 400 Robots Destroyed (33) 165 Value Destroyed (873) 873 Prototype IDs (5) 100 Alien Tech Used (0) 0 Bonus (8) 8 TOTAL SCORE: 1546 Bonus ------- High Alert Combat Kills 8 Cogmind --------- Core Integrity 0/250 Matter 91/300 Energy 100/100 System Corruption 3% Temperature Cool (0) Movement Rolling (95) Ox1 Location -10/Subcaves Parts ------- > --- POWER (1) -------- (None) > --- PROPULSION (2) --- Wheel Wheel > --- UTILITY (2) ------ Large Storage Unit Seismic Detector > --- WEAPON (2) ------- Rocket Launcher > --- INVENTORY (15) --- Light Treads Light Treads Small Storage Unit Medium Matter Pod (0) Sensor Array ECM Suite Power Shielding Utility Shielding Shotgun Shotgun Grenade Launcher Grenade Launcher Rocket Launcher Rocket Launcher Datajack Peak State ------------ > --- POWER ------------ Ion Engine > --- PROPULSION ------- Wheel Compact Wheel > --- UTILITY ---------- Large Storage Unit Medium Matter Pod > --- WEAPON ----------- Shotgun Shotgun > --- INVENTORY -------- Ion Engine Light Treads Light Treads Small Storage Unit ECM Suite Power Shielding Shotgun Shotgun Grenade Launcher Grenade Launcher Rocket Launcher Rocket Launcher Rocket Launcher Rocket Launcher Datajack [Rating: 11] Favorites ----------- Power Ion Engine Engine Ion Engine Propulsion Wheel Leg Aluminum Leg Wheel Wheel Utility Large Storage Unit Device Seismic Detector Storage Large Storage Unit Protection Light Armor Plating Weapon Shotgun Energy Gun Small Laser Ballistic Gun Shotgun Launcher Rocket Launcher Special Melee Weapon Datajack Build | -11 -10 -10 ------- Run | Yrd Mat Sub Slots Evolved . | . . . Power . | . . . Propulsion . | . . . Utility . | . . . Weapon . | . . . Parts Attached 30 | . 28 2 Power 2 | . 2 . Engine 2 | . 2 . Core . | . . . Reactor . | . . . Propulsion 5 | . 5 . Treads . | . . . Leg . | . . . Wheel 5 | . 5 . Hover . | . . . Flight . | . . . Utility 10 | . 10 . Device 5 | . 5 . Storage 2 | . 2 . Processor . | . . . Hackware . | . . . Protection 3 | . 3 . Artifact . | . . . Weapon 13 | . 11 2 Energy Gun . | . . . Energy Cannon . | . . . Ballistic Gun 8 | . 8 . Ballistic Cannon . | . . . Launcher 3 | . 1 2 Special Weapon . | . . . Impact Weapon . | . . . Slashing Weapon . | . . . Piercing Weapon . | . . . Special Melee Weapon 2 | . 2 . Unidentified Prototypes . | . . . Parts Lost 5 | . 3 2 Power 1 | . . 1 Propulsion 1 | . 1 . Utility 2 | . 2 . Weapon 1 | . . 1 Highest Loss Streak 2 | . 1 2 To Critical Strikes . | . . . Average Slot Usage (%) 97 | . 97 97 Engine 13 | . 14 11 Leg 5 | . 6 . Wheel 22 | . 21 28 Device 4 | . 4 14 Storage 16 | . 16 14 Protection 4 | . 5 . Energy Gun 1 | . 1 . Ballistic Gun 22 | . 24 . Launcher 2 | . . 28 Special Melee Weapon 2 | . 2 . Peak Build Rating 11 | 6 11 10 Average Rating 8 | 6 8 9 On Entrance 7 | 6 6 10 Naked Turns . | . . . Heaviest Build 34 | 13 33 34 Greatest Support 26 | 20 26 20 Greatest Overweight (x) 1 | . 1 1 Average Overweight (x) . | . . 1 Largest Inventory Capacity 15 | 8 15 15 Average Capacity 13 | 8 13 15 Most Carried 15 | 6 15 15 Average Carried 11 | 6 11 14 Final Capacity 15 | 8 15 15 Final Carried 15 | 6 15 15 Class Distribution -------------------- 100% | Mutant Dominant Class ---------------- Mutant | -10/Materials Mutant | -10/Subcaves Resources | -11 -10 -10 ----------- Run | Yrd Mat Sub Matter Collected 1152 | 200 835 117 Remotely . | . . . Salvage Created 1026 | . 934 92 Parts 54 | . 47 7 Haulers Intercepted 2 | . 2 . Recyclers Shooed . | . . . Parts Field Recycled . | . . . Retrieved Matter . | . . . Parts Self-Destructed . | . . . Prevented . | . . . Kills | -11 -10 -10 ------- Run | Yrd Mat Sub Combat Hostiles Destroyed 22 | . 17 5 Guns 17 | . 17 . AOE 5 | . . 5 Classes Destroyed 8 | . 7 1 Worker 4 | . 4 . Hauler 2 | . 2 . Recycler 2 | . 2 . Operator 1 | . 1 . Watcher 2 | . 2 . Swarmer 3 | . 3 . Grunt 14 | . 14 . Subdweller 5 | . . 5 Best Kill Streak 5 | . 5 4 Combat Bots Only 4 | . 3 4 Max Kills in Single Turn 3 | . 3 1 Gunslinging 1 | . 1 . Exploded 1 | . . 1 Melee . | . . . Uniques/NPCs Destroyed . | . . . Combat | -11 -10 -10 -------- Run | Yrd Mat Sub Hostile Shots Fired 107 | . 86 21 Missed 33 | . 23 10 Damage Taken 1209 | . 826 383 Core 270 | . 139 131 Absorbed by Shields . | . . . Core Remaining (%) 100 | 100 . . Volleys Fired 99 | . 85 14 Largest 2 | . 2 2 Hottest 66 | . 60 66 Shots Fired 191 | . 165 26 Gun 164 | . 164 . Cannon . | . . . Launcher 27 | . 1 26 Special . | . . . Kinetic 155 | . 155 . Thermal 9 | . 9 . Explosive 27 | . 1 26 Electromagnetic . | . . . Robot Hit Streak 8 | . 8 8 Robot Miss Streak 5 | . 5 1 Penetration Max . | . . . Secondary Targets 3 | . 3 . Max Gunslinging Chain 1 | . 1 . Shots Hit Robots 140 | . 125 15 Core Hits 61 | . 52 9 Critical Kills . | . . . Critical Parts Destroyed 1 | . 1 . Critical Strikes 1 | . 1 . Destroy 1 | . 1 . Melee Attacks 1 | . 1 . Impact . | . . . Slashing . | . . . Piercing . | . . . Sneak Attacks 1 | . 1 . Combat Hostiles . | . . . Follow-up Attacks . | . . . Damage Inflicted 3225 | . 2091 1134 Guns 1506 | . 1506 . Cannons . | . . . Explosions 1719 | . 585 1134 Melee . | . . . Ramming . | . . . Kinetic 1417 | . 1417 . Thermal 674 | . 674 . Explosive 1134 | . . 1134 Electromagnetic . | . . . Impact . | . . . Slashing . | . . . Piercing . | . . . Highest Corruption 3 | . 3 3 Average Corruption 2 | . 2 3 Corruption Purged . | . . . Corruption Blocked . | . . . Effects 15 | . 11 4 Message Errors 2 | . 2 . Matter Fused 4 | . 3 1 Heat Flow Errors 1 | . . 1 Energy Discharges 1 | . 1 . Data Loss (minor) 4 | . 3 1 Weapon Failures 3 | . 2 1 Overload Shots . | . . . Overflow Damage 211 | . 201 10 Projectiles . | . . . Explosions 211 | . 201 10 Melee . | . . . Knockbacks . | . . . Impact . | . . . Kinetic . | . . . Secondary . | . . . Self-Inflicted Damage 236 | . 71 165 Shots 9 | . 2 7 Rammed . | . . . Targets Rammed . | . . . Kicked . | . . . Crushed . | . . . Highest Temperature 225 | . 87 225 Average Temperature 23 | . 17 113 Received Heat Transfer 411 | . 393 18 Siege Activations . | . . . Robots Corrupted . | . . . Combat Hostiles . | . . . Parts Fried . | . . . Impact Corruptions . | . . . Robots Melted . | . . . Combat Hostiles . | . . . Parts Melted 1 | . 1 . Heat Transferred 500 | . 500 . Parts Sabotaged . | . . . Parts Stolen . | . . . Parts Stripped . | . . . Power Chain Reactions . | . . . Alert | -11 -10 -10 ------- Run | Yrd Mat Sub Peak Influence 422 | . 422 . Initial . | . . . Average 172 | . 173 . Maximum Alert Level 2 | . 2 . Low Security (%) 63 | 100 63 . Level 1 25 | . 25 . Level 2 11 | . 11 . Level 3 . | . . . Level 4 . | . . . Level 5 . | . . . High Security . | . . . Max Security . | . . . Squads Dispatched 4 | . 4 . Investigation 3 | . 3 . Extermination . | . . . Reinforcement 1 | . 1 . Assault . | . . . Garrison . | . . . Intercept . | . . . Searches Triggered . | . . . Construction Impeded . | . . . Haulers Reinforced . | . . . Active Scanning Responses . | . . . Cargo Convoy Interrupts . | . . . Stealth | -11 -10 -10 --------- Run | Yrd Mat Sub Distress Signals 2 | . 2 . Communications Jammed . | . . . Distress Signals . | . . . Times Spotted 36 | . 29 7 Peak Tracking Total 5 | . 5 2 Tactical Retreats 2 | . 2 . Traps | -11 -10 -10 ------- Run | Yrd Mat Sub Traps Triggered 3 | . 3 . Indirectly . | . . . Trap Hack Attempts 51 | . 51 . Triggered . | . . . Disarmed 4 | . 4 . Reprogrammed 3 | . 3 . Reused . | . . . Traps Extracted . | . . . Installed . | . . . Triggered . | . . . Objects Rigged 6 | . 6 . Exploded 2 | . 2 . Machines | -11 -10 -10 ---------- Run | Yrd Mat Sub Machines Disabled 6 | . 6 . Max in Single Turn 3 | . 3 . Machines Repaired . | . . . Machines Dismantled . | . . . Machines Sabotaged . | . . . Overloaded Fab Kills . | . . . Hacking | -11 -10 -10 --------- Run | Yrd Mat Sub Machines Accessed 8 | . 8 . Terminals 7 | . 7 . Fabricators . | . . . Repair Stations . | . . . Recycling Units 1 | . 1 . Scanalyzers . | . . . Garrison Access . | . . . Total Hacks 39 | . 39 . Successful 21 | . 21 . Failed 18 | . 18 . Catastrophic 5 | . 5 . Database Lockouts . | . . . Manual 21 | . 21 . Terminals 37 | . 37 . Fabricators . | . . . Repair Stations . | . . . Recycling Units 2 | . 2 . Scanalyzers . | . . . Garrison Access . | . . . Terminal Hacks 14 | . 14 . Prototype ID Bank 3 | . 3 . Branch Access Points 1 | . 1 . Terminal Index 1 | . 1 . Alert Level 2 | . 2 . Locate Traps 2 | . 2 . Maintenance Status 1 | . 1 . Patrol Status 1 | . 1 . Hauler Manifests 1 | . 1 . Registered Components 1 | . 1 . Zone Layout 1 | . 1 . Fabricator Hacks . | . . . Repair Station Hacks . | . . . Recycling Unit Hacks 2 | . 2 . Report Inventory 1 | . 1 . Retrieve Components 1 | . 1 . Scanalyzer . | . . . Garrison Access Hacks . | . . . Unauthorized Hacks 5 | . 5 . Terminals 5 | . 5 . Botnet 3 | . 3 . Detonate 1 | . 1 . Operators 1 | . 1 . Fabricators . | . . . Repair Stations . | . . . Recycling Units . | . . . Scanalyzers . | . . . Garrison Access . | . . . Data Cores Recovered . | . . . Used . | . . . Hacking Detections 7 | . 7 . Full Trace Events 5 | . 5 . Feedback Events . | . . . Feedback Blocked . | . . . Robot Schematics Acquired . | . . . Robots Built . | . . . Authchips . | . . . Time . | . . . Total Robot Build Rating . | . . . Part Schematics Acquired . | . . . Parts Built . | . . . Authchips . | . . . Time . | . . . Total Part Build Rating . | . . . Parts Repaired . | . . . Time . | . . . Parts Recycled . | . . . Recycled Matter . | . . . Retrieved Matter . | . . . Retrieved Components 1 | . 1 . Parts Scanalyzed . | . . . Part Schematics Acquired . | . . . Parts Damaged . | . . . Bothacking | -11 -10 -10 ------------ Run | Yrd Mat Sub Used RIF Installer . | . . . Robots Hacked 1 | . 1 . Non-combat 1 | . 1 . Combat . | . . . Robot Hacks Applied 1 | . 1 . find_recycling 1 | . 1 . Relay Couplers Released . | . . . Fabnet Peak Effective % . | . . . Robots Rewired . | . . . Allies Hacked . | . . . Hacks Repelled . | . . . Allies | -11 -10 -10 -------- Run | Yrd Mat Sub Total Allies . | . . . Largest Group . | . . . Highest-Rated Group . | . . . Highest-Rated Ally . | . . . Total Orders . | . . . Ally Attacks . | . . . Total Damage . | . . . Kills . | . . . Allies Corrupted . | . . . Allies Melted . | . . . Intel | -11 -10 -10 ------- Run | Yrd Mat Sub Robot Analysis Total . | . . . Derelict Logs Recovered . | . . . Drone Launches . | . . . Drone Recoveries . | . . . Exploration | -11 -10 -10 ------------- Run | Yrd Mat Sub Turns Passed 1402 | 5 1295 102 Spaces Moved 924 | 5 863 56 Core . | . . . Treads . | . . . Legs 181 | 5 176 . Wheels 743 | . 687 56 Hover . | . . . Flight . | . . . Fastest Speed 90 | 120 90 95 Average Speed 104 | 120 105 95 Slowest Speed 120 | 120 120 95 Overloaded Moves . | . . . Propulsion Burnouts . | . . . Robots Hopped . | . . . Cave-ins Triggered . | . . . Exploration Rate (%) 31 | 2 87 6 Regions Visited 2 Branch Regions 1 Pre-discovered Areas . | . . . Known Exits Taken . | . . . Unknown Exits Taken 2 | 1 1 . Scrap Searched . | . . . Spaces Dug . | . . . Terrain Destroyed 260 | . 102 158 Melee . | . . . Projectile . | . . . AOE 260 | . 102 158 Terrain Rammed . | . . . Walls Destroyed . | . . . Machines Disabled . | . . . Actions | -11 -10 -10 --------- Run | Yrd Mat Sub Total 1168 | 4 1087 77 Wait 32 | . 29 3 Move 922 | 4 862 56 Hop . | . . . Pick Up 18 | . 17 1 Fast Attach 4 | . 4 . Attach 6 | . 6 . Detach 2 | . 2 . Swap 20 | . 18 2 Drop 13 | . 12 1 Fire 99 | . 85 14 Melee 1 | . 1 . Ram . | . . . Kick . | . . . Crush . | . . . Escape Stasis . | . . . Rewire . | . . . Trap 51 | . 51 . Miscellaneous . | . . . Route ------- -11/Scrapyard -10/Materials (discovered 6 exits: [*Mat x3] / *Min x2 / [*Sub]) -10/Subcaves History --------- Turn | Location | Event 1 | -11/Scrapyard | Discovered new exit (range 3) 6 | -11/Scrapyard | Entered Materials 322 | -10/Materials | Build established: Mutant 337 | -10/Materials | Discovered new exit (range 10) 469 | -10/Materials | Discovered new exit (range 16) 541 | -10/Materials | Discovered new exit (range 16) 556 | -10/Materials | Discovered new exit (range 20) 810 | -10/Materials | Identified exit to Mines 1053 | -10/Materials | Core integrity fell below 50% 1280 | -10/Materials | Discovered new exit (range 9) 1301 | -10/Materials | Entered Subcaves 1354 | -10/Subcaves | A swath of the cavern ceiling suddenly collapsed 1372 | -10/Subcaves | Ambushed by Subdweller buried in earth 1387 | -10/Subcaves | Ambushed by Subdweller buried in earth 1387 | -10/Subcaves | Ambushed by Subdweller buried in earth 1388 | -10/Subcaves | Core integrity fell below 20% 1403 | -10/Subcaves | Destroyed by 4E-V74(R) with Subdweller Machine Gun Last Messages --------------- 01374_ The unstable cave ceiling collapses. 01375_ Subatomizers dissect the Sub. Machine Gun. 01375_ GI-LU3(R) destroyed. 01380_ The unstable cave ceiling collapses. 01384_ Acquired 17 matter. 01387_ ZY-2BY(R) destroyed. 01387_ Ion Engine destroyed. 01387_ Destroyed Ion Engine. 01388_ TJ-095(R): "ARGHSUB!" 01388_ 4E-V74(R): "HIDIE!" 01392_ The unstable cave ceiling collapses. 01393_ TJ-095(R) destroyed. 01395_ The unstable cave ceiling collapses. 01398_ Dropped Med. Matter Pod. 01399_ Extracted 100 matter. 01399_ Acquired Med. Matter Pod. 01400_ Subatomizers dissect the Sub. Machine Gun. 01400_ The unstable cave ceiling collapses. 01400_ Rocket Launcher destroyed. 01400_ Destroyed Rocket Launcher. Map ----- +----------------------------------------------------+ | ?????????????????????????????????????????????????? | | ?????????????????????????????????????????????????? | | ?????????????????????????????????????????????????? | | ?????????????????????????????????????????????????? | | ???????????????????????????????????????????????""? | | ?????????????????????????????????????????????"?" | | ????????????????????????????????????????????? " | | ?????????????????????????????????????????????? " | | ??????????????????????????????????????????????# | | ???????????????????????????????????????? ????? " | | ???????????????????????????????????????? ????# | | ???????????????????????????????????????? #?#### | | ???????????????????????????????????????? ## ## | | ?????????????????????????????????????### #?# | | ?????????????????????????????????????# ### | | ??????????????????????????????##?????# #?# | | ??????????????????????????#### ##????# #???# | | ??????????????????????#### ##???# #???# | | ?????????????????????## #???# #??## | | ????????????????????## ##??# #?## | | ???????????????????## #### ### | | ????????????????#;## # # ## ## | | ????????????????## = | | ????????? # R [ # # | | ????????? # | | ?????????# # @ | | ?????????# # ;##### | | ????????????? # # #### ##???## | | ??????????# ?#?#; # ######??###?????# | | ??????????? ??????##?##????????????????# | | ???????????????????????????????????????# | | ???????????????????????????????????????# ### | | ???????????????????????????????????????# #?## | | ???????????????????????????????????????# #??### | | ???????????????????????????????????????## #????# | | ????????????????????????????????????????###????? | | ???????????????????????????????????????????????? | | ???????????????????????????????????????????????? | | ????????????????????????????????????????????????# | | ????????????????????????????????????????????????? | | ????????????????????????????????????????????????? | | ?????????????????????????????????????????????????? | | ?????????????????????????????????????????????????? | | ?????????????????????????????????????????????????? | | ?????????????????????????????????????????????????? | | ?????????????????????????????????????????????????? | | ?????????????????????????????????????????????????? | | ?????????????????????????????????????????????????? | | ?????????????????????????????????????????????????? | | ?????????????????????????????????????????????????? | +----------------------------------------------------+ Best States ------------- Heat Dissipation 25 Energy Generation 10 Energy Capacity 250 Matter Stores 380 Matter Capacity 400 Sight Range 16 Terrain Scan Density 10 ECM Strength 1 Armor Coverage 150 Power Shielding 33 Utility Shielding 33 Evasion (%) 55 Item Schematics ----------------- None Robot Schematics ------------------ None Fabricated ------------ Nothing Alien Tech Used ----------------- None Achievements -------------- None Challenges ------------ None Game ------ Seed CoordinationScrapoidClaw Manual? 0 Play Time 00:10:46 Cumulative 917.4 hours Start 2024.09.04 @ 12:15:33 End 2024.09.04 @ 12:25:57 Sessions 1 Manual Loads 0 Difficulty Rogue Special Mode None Game No. 1111 Rogue 831 Adventurer 124 Explorer 156 Win Type - Total 39 Types 28/0/8/1/1/0/0/1/0 Lore% 79 Gallery% 90 Achievement% 78 Wizard Run 0 Options --------- Layout 0 ASCII 0 Keyboard 1 Movement Numpad Keybinds 0 Fullscreen 2 Font 18/X11 Map View 76x50 Zoom Use 0% Tactical HUD 1 Map Filters NONE Filters NONE Steam 1 RUN: f4f15108-cdd7-4305-acdf-8008df3843f3